bitfinex-derivatives/quotes_ETHF0:USTF0_20230105
["timestamp","ask_amount","ask_price","bid_price","bid_amount"]
[1672877404500,3.0073,1256.9,1256.8,1.78889926]
[1672877406181,3.0073,1256.9,1256.8,1.7823611]
[1672877406813,2.5,1257.0,1256.8,1.7823611]
[1672877407024,3.0073,1256.9,1256.8,1.7823611]
[1672877407331,2.5,1257.0,1256.8,1.7823611]
[1672877407651,3.0073,1256.9,1256.8,1.7823611]
[1672877408595,3.0073,1256.9,1256.6,16.34027629]
[1672877408806,3.0073,1256.7,1256.6,16.34027629]
[1672877409123,3.0073,1256.7,1256.6,2.38227629]
[1672877411541,3.0073,1256.8,1256.6,2.38227629]
[1672877411858,2.5,1256.7,1256.6,2.38227629]
[1672877413104,2.5,1256.7,1256.5,7.85414751]
[1672877413317,2.5,1256.7,1256.5,5.35414751]
[1672877413527,2.5,1256.7,1256.5,6.76463449]
[1672877413744,2.5,1256.7,1256.6,2.38227629]
[1672877415114,2.5,1256.7,1256.5,7.85414751]
[1672877415537,2.5,1256.7,1256.6,2.38227629]
[1672877415849,2.5,1256.7,1256.6,2.5]
[1672877416373,2.5,1256.7,1256.5,7.85414751]
[1672877420892,2.5,1256.7,1256.5,4.88227629]
[1672877421102,5.5073,1256.7,1256.5,4.88227629]
[1672877421313,5.5073,1256.7,1256.5,2.38227629]
[1672877421524,5.5073,1256.7,1256.5,3.79277338]
[1672877423415,3.0073,1256.9,1256.5,3.79277338]
[1672877423829,3.0073,1256.9,1256.5,6.7646446]
[1672877424039,3.0073,1256.9,1256.6,2.38227629]
[1672877424257,3.0073,1256.9,1256.7,2.5]
[1672877426672,2.5,1256.8,1256.7,2.5]
[1672877426885,2.5,1256.8,1256.6,7.88957629]
[1672877427304,2.5,1256.8,1256.6,10.86144751]
[1672877429934,2.5,1256.8,1256.6,7.85414751]
[1672877430240,2.5,1256.8,1256.6,10.86144751]
[1672877431082,2.5,1256.8,1256.6,7.85414751]
[1672877431298,2.5,1256.8,1256.6,10.86144751]
[1672877431615,2.5,1256.8,1256.6,7.85414751]
[1672877431823,2.5,1256.8,1256.6,10.86144751]
[1672877432038,2.5,1256.8,1256.6,7.85414751]
[1672877432241,2.5,1256.8,1256.6,10.86144751]
[1672877432773,2.5,1256.8,1256.6,7.85414751]
[1672877432981,2.5,1256.8,1256.7,2.38227629]
[1672877433187,2.5,1256.8,1256.7,4.88227629]
[1672877433503,2.5,1256.8,1256.7,2.38227629]
[1672877447589,3.0073,1256.9,1256.7,2.38227629]
[1672877452111,2.5,1256.8,1256.7,3.79266794]
[1672877456947,3.0073,1256.9,1256.7,3.79266794]
[1672877459049,3.0073,1256.9,1256.8,2.38227629]
[1672877459371,3.0073,1256.9,1256.8,4.88227629]
[1672877460205,2.5,1257.0,1256.8,4.88227629]
[1672877460417,2.5,1257.0,1256.9,1.19274618]
[1672877460632,2.5,1257.0,1256.9,3.69274618]
[1672877461892,2.5,1257.0,1256.9,1.19274618]
[1672877463787,2.5,1257.0,1256.8,4.88227629]
[1672877464205,2.5,1257.0,1256.9,1.19263191]
[1672877465049,5.5073,1257.0,1256.9,1.19263191]
[1672877466198,5.5073,1257.0,1256.9,2.9814224]
[1672877466834,2.5,1257.0,1256.9,2.9814224]
[1672877467039,5.5073,1257.0,1256.9,2.9814224]
[1672877467676,3.0073,1257.0,1256.9,2.9814224]
[1672877467880,2.5,1257.1,1256.9,3.79243605]
[1672877468091,2.5,1257.1,1257.0,2.98027195]
[1672877468721,2.5,1257.1,1257.0,1.19210878]
[1672877469244,2.5,1257.1,1257.0,2.98027195]
[1672877469881,2.5,1257.1,1257.0,1.19210878]
[1672877473773,5.5073,1257.1,1257.0,1.19210878]
[1672877473981,3.0073,1257.1,1257.0,1.19210878]
[1672877475034,2.5,1257.2,1257.0,1.19210878]
[1672877475343,3.0073,1257.1,1257.0,1.19210878]
[1672877476081,3.0073,1257.1,1256.9,2.98027195]
[1672877476291,2.5,1257.0,1256.9,2.98027195]
[1672877478496,2.5,1257.0,1256.9,1.19210878]
[1672877479544,5.5073,1257.0,1256.9,1.19210878]
[1672877480603,2.5,1257.0,1256.9,1.19210878]
[1672877480805,5.5073,1257.0,1256.9,1.19210878]
[1672877484379,9.67583653,1257.2,1256.9,2.98027195]
[1672877484585,5.5073,1257.2,1256.9,2.98027195]
[1672877485118,5.5073,1257.2,1257.0,1.19210878]
[1672877487846,3.0073,1257.2,1257.0,1.19210878]
[1672877488059,3.0073,1257.2,1257.0,2.97582256]
[1672877488060,2.5,1257.1,1257.0,2.97582256]
[1672877488268,3.0073,1257.2,1257.0,4.79546317]
[1672877488479,3.0073,1257.2,1257.1,2.5]
[1672877489635,5.5073,1257.4,1257.1,4.28816317]
[1672877492269,5.5073,1257.4,1257.1,2.5]
[1672877495317,3.0073,1257.3,1257.1,2.5]
[1672877495533,2.5,1257.2,1257.1,2.5]
[1672877495730,2.5,1257.2,1257.0,15.25446317]
[1672877495940,2.5,1257.2,1257.1,2.5]
[1672877499101,2.5,1257.2,1257.0,15.25446317]
[1672877502886,2.5,1257.4,1257.1,2.5]
[1672877503095,2.5,1257.2,1257.1,2.5]
[1672877504673,2.5,1257.2,1257.0,15.25446317]
[1672877505411,3.0073,1257.3,1257.1,2.5]
[1672877506140,2.5,1257.2,1257.1,1.5]
[1672877507399,2.5,1257.2,1257.0,1.78816317]
[1672877508141,2.5,1257.2,1256.9,14.62943946]
[1672877508348,2.5,1257.2,1256.9,12.24716317]
[1672877508563,3.0073,1257.1,1256.9,12.24716317]
[1672877508765,2.5,1257.0,1256.9,12.24716317]
[1672877508975,2.5,1257.0,1256.9,12.84127629]
[1672877509294,3.0073,1257.1,1256.9,12.84127629]
[1672877509505,3.0073,1257.1,1257.0,1.78399883]
[1672877509927,3.0073,1257.1,1256.9,14.62527512]
[1672877510343,3.0073,1257.1,1257.0,1.78399883]
[1672877511076,3.00190952,1257.1,1257.0,1.78399883]
[1672877512972,2.5,1257.2,1257.0,1.78399883]
[1672877513176,5.5073,1257.2,1257.0,1.78399883]
[1672877516665,5.5073,1257.2,1257.0,1.78399883]
[1672877518976,2.5,1257.2,1257.0,1.78399883]
[1672877519293,5.5073,1257.2,1257.0,1.78399883]
[1672877520757,2.5,1257.2,1257.0,1.78399883]
[1672877520974,5.5073,1257.2,1257.0,1.78399883]
[1672877522875,2.5,1257.2,1257.0,1.78399883]
[1672877523180,5.5073,1257.2,1257.0,1.78399883]
[1672877524859,5.5073,1257.2,1257.0,4.16627512]
[1672877525274,2.5,1257.2,1257.0,4.16627512]
[1672877525489,5.5073,1257.2,1257.0,4.16627512]
[1672877526438,2.5,1257.2,1257.0,4.16627512]
[1672877526749,5.5073,1257.2,1257.0,4.16627512]
[1672877527594,5.5073,1257.2,1257.1,1.78399883]
[1672877527798,5.5073,1257.2,1257.0,4.16627512]
[1672877528215,5.5073,1257.2,1257.1,1.78399883]
[1672877529057,2.5,1257.2,1257.0,4.16627512]
[1672877529377,5.5073,1257.2,1257.0,4.16627512]
[1672877529796,5.5073,1257.2,1257.1,1.78399883]
[1672877530014,5.5073,1257.2,1257.0,4.16627512]
[1672877530745,2.5,1257.2,1257.0,4.17297512]
[1672877531055,5.5073,1257.2,1257.1,4.28399883]
[1672877531267,5.5073,1257.2,1257.1,1.78399883]
[1672877533055,2.5,1257.2,1257.1,1.78399883]
[1672877533264,5.5073,1257.2,1257.1,1.78399883]
[1672877534109,2.5,1257.2,1257.1,1.78399883]
[1672877534423,5.5073,1257.2,1257.1,1.78399883]
[1672877534738,2.5,1257.2,1257.1,1.78399883]
[1672877535159,5.5073,1257.2,1257.1,1.78399883]
[1672877536106,2.5,1257.2,1257.1,1.78399883]
[1672877536317,5.5073,1257.2,1257.1,1.78399883]
[1672877537895,2.5,1257.2,1257.1,1.78399883]
[1672877538106,5.5073,1257.2,1257.1,1.78399883]
[1672877539999,2.5,1257.2,1257.1,1.78399883]
[1672877540210,5.5073,1257.2,1257.1,1.78399883]
[1672877540414,2.5,1257.2,1257.1,1.78399883]
[1672877540623,5.5073,1257.2,1257.1,1.78399883]
[1672877541155,2.5,1257.2,1257.1,1.78399883]
[1672877541363,5.5073,1257.2,1257.1,1.78399883]
[1672877547137,5.5073,1257.2,1257.0,1.79069883]
[1672877547666,9.67583653,1257.2,1257.0,1.79069883]
[1672877549039,5.5073,1257.2,1257.0,1.79069883]
[1672877549773,3.0073,1257.1,1257.0,1.79069883]
[1672877551454,2.5,1257.2,1257.0,1.79069883]
[1672877551666,3.0073,1257.1,1257.0,1.79069883]
[1672877551984,2.5,1257.2,1257.0,6.77112374]
[1672877552182,2.5,1257.2,1257.1,4.1690744]
[1672877552390,2.5,1257.2,1257.1,6.6690744]
[1672877553032,2.5,1257.2,1257.1,4.28669542]
[1672877553556,2.5,1257.2,1257.1,1.78669542]
[1672877553874,2.5,1257.2,1257.1,4.1690744]
[1672877554074,2.5,1257.2,1257.1,1.78669542]
[1672877554287,2.5,1257.2,1257.1,4.1690744]
[1672877554819,2.5,1257.2,1257.1,1.78669542]
[1672877556075,4.5073,1257.3,1257.1,4.28669542]
[1672877556286,4.5073,1257.3,1257.2,1.78669542]
[1672877557026,4.5073,1257.3,1257.1,6.6690744]
[1672877557441,4.5073,1257.3,1257.2,1.78669542]
[1672877560068,1.5,1257.3,1257.2,1.78669542]
[1672877563120,1.5,1257.3,1257.1,6.6690744]
[1672877565643,5.5073,1257.4,1257.2,1.78669542]
[1672877565846,7.17583653,1257.6,1257.3,1.78669542]
[1672877566057,3.0073,1257.6,1257.3,9.74569542]
[1672877566266,2.5,1257.5,1257.4,2.5]
[1672877566999,2.5,1257.5,1257.3,12.24569542]
[1672877568048,2.5,1257.5,1257.3,9.74569542]
[1672877569950,2.5,1257.5,1257.2,12.75299542]
[1672877570362,2.5,1257.5,1257.2,15.1353744]
[1672877570782,2.5,1257.5,1257.2,12.75299542]
[1672877573625,5.5073,1257.5,1257.2,12.75299542]
[1672877574151,2.5,1257.5,1257.2,9.74569542]
[1672877574360,5.5073,1257.5,1257.2,12.75299542]
[1672877575313,5.5073,1257.5,1257.2,9.74569542]
[1672877577938,2.5,1257.5,1257.2,9.74569542]
[1672877578146,5.5073,1257.5,1257.2,9.74569542]
[1672877580357,5.5073,1257.5,1257.2,12.1280744]
[1672877580981,5.5073,1257.5,1257.2,9.74569542]
[1672877581399,2.5,1257.5,1257.2,9.74569542]
[1672877586656,5.5073,1257.5,1257.2,9.74569542]
[1672877587815,2.5,1257.5,1257.2,9.74569542]
[1672877588973,3.0073,1257.4,1257.2,1.78669542]
[1672877589174,2.5,1257.3,1257.2,1.78669542]
[1672877608105,2.5,1257.3,1257.2,2.97653278]
[1672877608638,2.5,1257.3,1257.2,1.78669542]
[1672877608951,2.5,1257.3,1257.2,2.97661027]
[1672877609266,2.5,1257.3,1257.2,1.78669542]
[1672877609577,2.5,1257.3,1257.2,2.97661079]
[1672877609788,2.5,1257.3,1257.2,1.78669542]
[1672877610311,2.5,1257.3,1257.2,2.97663014]
[1672877610941,2.5,1257.3,1257.2,2.97665091]
[1672877613885,2.5,1257.3,1257.2,1.78669542]
[1672877614410,3.0073,1257.4,1257.2,9.74569542]
[1672877614622,2.5,1257.5,1257.3,1.78453527]
[1672877614829,2.5,1257.5,1257.4,1.18974061]
[1672877615147,2.5,1257.5,1257.4,3.68974061]
[1672877615984,2.5,1257.5,1257.4,1.18974061]
[1672877618102,5.5073,1257.6,1257.4,1.18974061]
[1672877618303,2.5,1257.6,1257.5,1.18974061]
[1672877618512,2.5,1257.7,1257.6,0.00633706]
[1672877619674,5.5073,1257.7,1257.6,0.00633706]
[1672877627143,2.5,1257.7,1257.6,0.00633706]
[1672877627455,5.5073,1257.7,1257.6,0.00633706]
[1672877627770,2.5,1257.7,1257.6,0.00633706]
[1672877627981,5.5073,1257.7,1257.6,0.00633706]
[1672877647747,2.5,1257.7,1257.6,0.00633706]
[1672877647964,5.5073,1257.7,1257.6,0.00633706]
[1672877649857,2.5,1257.7,1257.6,0.00633706]
[1672877650168,5.5073,1257.7,1257.6,0.00633706]
[1672877651214,2.5,1257.7,1257.6,0.00633706]
[1672877651424,5.5073,1257.7,1257.6,0.00633706]
[1672877652793,10.27134175,1257.7,1257.6,0.00633706]
[1672877657001,7.26404175,1257.7,1257.6,0.00633706]
[1672877657211,10.27134175,1257.7,1257.6,0.00633706]
[1672877659944,5.5073,1257.7,1257.6,0.00633706]
[1672877663414,5.5073,1257.7,1257.6,1.19607767]
[1672877663935,5.5073,1257.7,1257.6,0.00633706]
[1672877664567,5.5073,1257.7,1257.6,1.19607767]
[1672877665512,5.5073,1257.7,1257.6,0.00633706]
[1672877671401,5.5073,1257.7,1257.6,1.19607767]
[1672877672133,2.5,1257.7,1257.6,1.19607767]
[1672877672339,2.5,1257.7,1257.6,0.00633706]
[1672877672340,5.5073,1257.7,1257.6,0.00633706]
[1672877673714,2.5,1257.7,1257.6,0.00633706]
[1672877673920,5.5073,1257.7,1257.6,0.00633706]
[1672877676552,2.5,1257.7,1257.6,0.00633706]
[1672877676761,5.5073,1257.7,1257.6,0.00633706]
[1672877678018,5.5073,1257.7,1257.6,1.19607767]
[1672877678546,5.5073,1257.7,1257.6,0.00633706]
[1672877683165,2.5,1257.7,1257.6,0.00633706]
[1672877683481,5.5073,1257.7,1257.6,0.00633706]
[1672877684531,2.5,1257.7,1257.6,0.00633706]
[1672877684849,5.5073,1257.7,1257.6,0.00633706]
[1672877688633,2.5,1257.7,1257.6,0.00633706]
[1672877688845,5.5073,1257.7,1257.6,0.00633706]
[1672877692829,2.5,1257.7,1257.6,0.00633706]
[1672877693040,5.5073,1257.7,1257.6,0.00633706]
[1672877693892,5.5073,1257.7,1257.6,0.00409131]
[1672877697041,2.5,1257.7,1257.6,0.00409131]
[1672877697571,5.5073,1257.7,1257.6,0.00409131]
[1672877700518,5.5073,1257.7,1257.6,1.19383192]
[1672877701462,5.5073,1257.7,1257.6,0.00409131]
[1672877701672,5.5073,1257.7,1257.6,1.19383192]
[1672877707979,5.5073,1257.7,1257.6,0.00409131]
[1672877710293,5.5073,1257.7,1257.6,1.19383192]
[1672877711969,3.0073,1257.7,1257.6,1.78619491]
[1672877712393,3.0073,1257.7,1257.6,2.97651833]
[1672877712601,3.0073,1257.7,1257.6,1.78619491]
[1672877713014,3.0073,1257.7,1257.6,2.97653146]
[1672877714698,3.0073,1257.7,1257.6,1.19442786]
[1672877714905,2.5,1257.8,1257.6,1.19442786]
[1672877715119,3.0073,1257.7,1257.6,1.19442786]
[1672877715339,3.0073,1257.7,1257.6,2.97653146]
[1672877718379,3.0073,1257.7,1257.6,1.78619491]
[1672877718588,3.0073,1257.7,1257.6,2.97622087]
[1672877719958,2.5,1257.8,1257.6,2.97622087]
[1672877720165,5.5073,1257.8,1257.6,2.97622087]
[1672877720588,5.5073,1257.8,1257.6,1.19411727]
[1672877721007,5.5073,1257.8,1257.6,0.00409131]
[1672877723010,5.5073,1257.8,1257.6,1.19411727]
[1672877723536,5.5073,1257.8,1257.6,0.00409131]
[1672877723853,5.5073,1257.8,1257.6,1.19411727]
[1672877724069,5.5073,1257.8,1257.6,0.00409131]
[1672877725224,5.5073,1257.8,1257.6,1.19411727]
[1672877725850,5.5073,1257.8,1257.6,0.00409131]
[1672877726473,5.5073,1257.8,1257.6,1.19411727]
[1672877726799,5.5073,1257.8,1257.6,9.131e-05]
[1672877727010,10.27134175,1257.8,1257.6,9.131e-05]
[1672877728484,5.5073,1257.8,1257.6,9.131e-05]
[1672877732371,5.5073,1257.8,1257.6,1.19011727]
[1672877733738,3.0073,1257.7,1257.6,1.19011727]
[1672877734048,3.0073,1257.7,1257.6,1.19002596]
[1672877734998,3.0073,1257.7,1257.6,2.97212956]
[1672877735209,3.0073,1257.7,1257.6,1.19002596]
[1672877735730,3.0073,1257.7,1257.6,2.97212956]
[1672877736782,3.0073,1257.7,1257.6,1.19002596]
[1672877740877,3.0073,1257.7,1257.6,2.97212956]
[1672877746661,3.0073,1257.7,1257.6,1.7821036]
[1672877748442,3.0073,1257.7,1257.6,2.97192113]
[1672877749286,3.0073,1257.7,1257.6,1.18981753]
[1672877750750,2.5,1257.8,1257.6,1.18981753]
[1672877750963,3.0073,1257.7,1257.6,1.18981753]
[1672877753802,2.5,1257.8,1257.6,1.18981753]
[1672877754011,3.0073,1257.7,1257.6,1.18981753]
[1672877761582,2.5,1257.8,1257.6,1.18981753]
[1672877761780,3.0073,1257.7,1257.6,1.18981753]
[1672877765252,3.0073,1257.7,1257.5,4.38141764]
[1672877765463,2.5,1257.6,1257.5,4.38141764]
[1672877767456,5.5073,1257.6,1257.5,4.38141764]
[1672877768192,5.5073,1257.6,1257.5,3.19160011]
[1672877769876,2.5,1257.6,1257.5,3.19160011]
[1672877777762,2.5,1257.6,1257.5,5.57397909]
[1672877778394,2.5,1257.6,1257.5,3.19160011]
[1672877782278,2.5,1257.6,1257.5,5.57397909]
[1672877782503,2.5,1257.6,1257.5,3.19160011]
[1672877782803,2.5,1257.6,1257.5,5.57397909]
[1672877783009,2.5,1257.6,1257.5,3.19160011]
[1672877783225,2.5,1257.6,1257.5,5.57397909]
[1672877783754,2.5,1257.6,1257.5,5.57746018]
[1672877784702,2.5,1257.6,1257.5,3.79187549]
[1672877785648,2.5,1257.6,1257.5,5.5776392]
[1672877786067,2.5,1257.6,1257.5,3.79187549]
[1672877786481,2.5,1257.6,1257.5,5.2013822]
[1672877786901,2.5,1257.6,1257.5,3.79187549]
[1672877787115,2.5,1257.6,1257.5,5.20139635]
[1672877790915,2.5,1257.6,1257.5,3.79187549]
[1672877791434,2.5,1257.6,1257.5,5.20140183]
[1672877792381,5.5073,1257.8,1257.5,5.20140183]
[1672877792588,5.5073,1257.8,1257.7,1.19074895]
[1672877794479,2.5,1257.8,1257.7,1.19074895]
[1672877794691,5.5073,1257.8,1257.7,1.19074895]
[1672877797212,5.5073,1257.8,1257.7,2.97687238]
[1672877798256,5.5073,1257.8,1257.7,1.19074895]
[1672877799950,2.5,1257.9,1257.7,1.78612343]
[1672877800155,2.5,1257.9,1257.8,1.19003002]
[1672877801098,4.1683,1258.0,1257.8,1.19003002]
[1672877801303,1.161,1258.0,1257.9,1.78612343]
[1672877801940,1.161,1258.0,1257.9,2.78612343]
[1672877802359,1.161,1258.0,1257.9,3.97398978]
[1672877802573,1.161,1258.0,1257.9,10.14686635]
[1672877803098,1.161,1258.0,1257.9,11.34137898]
[1672877804153,1.161,1258.0,1257.9,12.75033181]
[1672877804360,1.161,1258.0,1257.9,13.12063924]
[1672877805625,1.15574757,1258.0,1257.9,13.12063924]
[1672877805836,1.15574757,1258.0,1257.9,10.73826026]
[1672877806356,1.15574757,1258.0,1257.9,10.14422339]
[1672877806570,1.15574757,1258.0,1257.9,9.14422339]
[1672877807399,1.15574757,1258.0,1257.9,1.18522339]
[1672877807610,1.15574757,1258.0,1257.8,13.93078365]
[1672877808252,1.15574757,1258.0,1257.8,9.14422339]
[1672877808456,1.15574757,1258.0,1257.8,1.18522339]
[1672877808672,4.16304757,1258.0,1257.7,2.96448365]
[1672877808986,2.5,1257.9,1257.8,1.18522339]
[1672877809198,2.5,1257.9,1257.8,3.68522339]
[1672877809400,1.15574757,1258.0,1257.8,5.46448365]
[1672877809611,1.15574757,1258.0,1257.8,13.42348365]
[1672877809925,1.15574757,1258.0,1257.8,11.64422339]
[1672877811509,1.15574757,1258.0,1257.8,9.14422339]
[1672877811725,1.15574757,1258.0,1257.8,7.959]
[1672877812343,4.16304757,1258.0,1257.8,7.959]
[1672877812554,2.5,1257.9,1257.8,7.959]
[1672877813823,2.5,1257.9,1257.7,5.46448365]
[1672877814031,2.5,1257.9,1257.7,10.92348365]
[1672877814454,2.5,1257.9,1257.7,9.14422339]
[1672877814665,2.5,1257.9,1257.7,10.92348365]
[1672877814872,2.5,1257.9,1257.7,9.14422339]
[1672877816139,2.5,1257.9,1257.7,10.92348365]
[1672877818030,4.16304757,1258.0,1257.8,1.18522339]
[1672877818339,4.16304757,1258.0,1257.9,2.5]
[1672877818766,4.16304757,1258.0,1257.8,3.68522339]
[1672877820124,4.16304757,1258.0,1257.8,6.69252339]
[1672877823189,4.16304757,1258.0,1257.8,4.19252339]
[1672877823392,4.16304757,1258.0,1257.8,1.18522339]
[1672877823712,4.16304757,1258.0,1257.7,9.73826026]
[1672877823713,2.5,1257.9,1257.7,9.14422339]
[1672877824236,2.5,1257.9,1257.7,10.92348365]
[1672877826234,2.5,1257.9,1257.8,1.18522339]
[1672877826444,2.5,1257.9,1257.8,3.68522339]
[1672877827704,2.5,1257.9,1257.8,1.18522339]
[1672877828018,2.5,1257.9,1257.8,3.68522339]
[1672877828227,1.15574757,1258.0,1257.8,5.46448365]
[1672877829492,1.15574757,1258.0,1257.8,8.47178365]
[1672877830124,1.15574757,1258.0,1257.8,5.46448365]
[1672877831067,1.15574757,1258.0,1257.9,1.18522339]
[1672877832014,1.15574757,1258.0,1257.8,5.46448365]
[1672877834132,1.15574757,1258.0,1257.9,1.18522339]
[1672877836440,1.15574757,1258.0,1257.9,2.96448365]
[1672877839703,1.15574757,1258.0,1257.9,1.77926026]
[1672877841281,1.15574757,1258.0,1257.9,4.16163924]
[1672877842015,1.15574757,1258.0,1257.9,1.77926026]
[1672877842431,1.15574757,1258.0,1257.9,4.16163924]
[1672877842642,1.15574757,1258.0,1257.9,1.77926026]
[1672877844320,1.15574757,1258.0,1257.9,4.16163924]
[1672877844538,1.15574757,1258.0,1257.9,6.79872317]
[1672877844852,5.5093,1258.3,1257.9,15.34721541]
[1672877845059,5.5093,1258.3,1258.1,1.18865994]
[1672877847472,5.5093,1258.3,1258.0,5.47164984]
[1672877848422,5.5093,1258.3,1258.0,13.43064984]
[1672877848638,5.5093,1258.3,1258.1,2.97164984]
[1672877849053,5.5093,1258.3,1258.2,2.5]
[1672877849474,2.502,1258.3,1258.2,3.68865994]
[1672877849793,2.502,1258.3,1258.1,5.47164984]
[1672877850209,0.002,1258.3,1258.1,5.47164984]
[1672877850421,0.002,1258.3,1258.2,3.68865994]
[1672877850631,0.002,1258.3,1258.2,12.2419899]
[1672877851050,0.002,1258.3,1258.2,13.42914681]
[1672877851256,0.002,1258.3,1258.2,12.2419899]
[1672877851471,3.0073,1258.7,1258.2,11.8676083]
[1672877851691,13.13088872,1258.9,1258.4,13.9329376]
[1672877851897,13.13088872,1258.9,1258.5,1.18665504]
[1672877852106,3.0073,1258.9,1258.6,12.15295504]
[1672877852424,7.77134175,1259.1,1258.7,3.68665504]
[1672877852628,1.74537914,1259.4,1259.0,3.0]
[1672877852837,5.35954697,1259.7,1259.3,7.959]
[1672877853047,8.36684697,1259.7,1259.3,7.959]
[1672877853471,2.5,1259.6,1258.8,16.23119739]
[1672877853682,3.0073,1259.5,1258.8,13.26455979]
[1672877853883,3.0073,1259.5,1258.8,3.0073]
[1672877854096,3.0073,1259.3,1258.8,3.0073]
[1672877854312,3.0073,1259.3,1258.9,2.5]
[1672877854313,2.5,1259.2,1258.9,2.5]
[1672877854736,2.5,1259.2,1258.8,3.0073]
[1672877854943,5.5073,1259.2,1258.8,3.0073]
[1672877855357,3.0073,1259.2,1258.9,2.5]
[1672877855676,2.5,1259.4,1259.0,10.9663]
[1672877855888,2.5,1259.4,1259.1,2.5]
[1672877856418,5.5073,1259.4,1259.1,2.5]
[1672877856630,5.5073,1259.4,1259.0,3.0073]
[1672877857784,5.5073,1259.4,1258.8,4.1887]
[1672877857992,3.0073,1259.2,1258.8,4.1887]
[1672877858201,2.5,1259.1,1258.8,4.1887]
[1672877858837,2.5,1259.1,1258.8,3.0073]
[1672877859775,3.0073,1259.0,1258.7,1.87701093]
[1672877860405,1.5,1258.9,1258.7,1.87701093]
[1672877861043,1.5,1258.9,1258.8,2.5]
[1672877861248,5.5073,1259.1,1258.8,2.5]
[1672877861670,5.5073,1259.1,1258.8,5.5073]
[1672877862826,13.958,1259.3,1258.8,13.4663]
[1672877863042,13.958,1259.3,1259.0,10.9663]
[1672877863255,4.1588,1259.6,1259.1,10.459]
[1672877863462,4.1588,1259.6,1259.3,7.959]
[1672877863878,4.1588,1259.6,1259.4,3.0073]
[1672877864095,4.1588,1259.6,1259.4,11.9663]
[1672877864305,2.5,1259.9,1259.4,11.9663]
[1672877864621,2.5,1259.9,1259.6,10.9663]
[1672877865240,21.0047,1260.2,1259.7,2.5]
[1672877865241,13.958,1260.2,1259.7,2.5]
[1672877865456,3.0073,1260.4,1259.8,10.9663]
[1672877865674,3.0073,1260.4,1260.0,3.0073]
[1672877866094,2.5,1260.3,1260.0,3.0073]
[1672877866509,2.5,1260.3,1259.8,10.9663]
[1672877866931,3.0073,1260.2,1259.8,3.0073]
[1672877867456,3.6814,1260.3,1259.8,3.0073]
[1672877867872,3.0073,1260.2,1259.8,3.0073]
[1672877868293,2.5,1260.1,1259.8,3.0073]
[1672877870089,2.5,1260.1,1259.6,3.0073]
[1672877870299,3.6814,1260.1,1259.7,2.5]
[1672877870820,3.0073,1260.0,1259.6,10.9663]
[1672877871022,3.0073,1260.0,1259.6,3.0073]
[1672877871239,1.5,1259.9,1259.4,3.0073]
[1672877871763,3.0073,1259.8,1259.4,3.0073]
[1672877872184,2.5,1259.7,1259.4,3.0073]
[1672877872502,2.5,1259.7,1259.2,5.5073]
[1672877872914,2.5,1259.7,1259.4,3.0073]
[1672877873124,2.5,1259.7,1259.5,2.5]
[1672877873331,1.5,1259.9,1259.5,10.459]
[1672877873865,1.5,1259.9,1259.5,2.5]
[1672877874175,3.0073,1259.9,1259.5,2.5]
[1672877874385,5.5073,1260.1,1259.6,3.0073]
[1672877874596,4.4186,1260.2,1259.8,3.0073]
[1672877875016,4.4186,1260.2,1260.0,2.5]
[1672877875236,2.5,1260.3,1260.0,2.5]
[1672877875548,2.5,1260.3,1259.9,2.5]
[1672877876378,4.1887,1260.4,1260.0,10.9663]
[1672877876594,3.0073,1260.4,1260.0,3.0073]
[1672877876909,3.0073,1260.4,1259.8,4.1887]
[1672877877124,3.0073,1260.0,1259.3,3.0073]
[1672877877438,3.0073,1259.8,1259.3,10.9663]
[1672877877752,3.0073,1259.6,1259.4,2.5]
[1672877878174,1.5,1259.5,1259.2,10.459]
[1672877878384,1.5,1259.5,1259.2,2.5]
[1672877880808,1.18721495,1259.5,1259.2,2.5]
[1672877881650,1.18721495,1259.5,1259.2,10.459]
[1672877882277,3.0073,1259.6,1259.2,10.459]
[1672877882488,2.5,1259.5,1259.2,10.459]
[1672877883217,2.5,1259.5,1259.2,7.959]
[1672877883857,2.5,1259.5,1259.1,5.5073]
[1672877884795,2.5,1259.5,1259.1,13.4663]
[1672877885014,2.5,1259.5,1259.1,14.65295504]
[1672877885746,3.0073,1259.6,1259.2,1.18665504]
[1672877886058,5.5073,1259.7,1259.3,13.4663]
[1672877886472,5.5073,1259.7,1259.4,1.0]
[1672877888901,5.5073,1259.7,1259.3,1.18665504]
[1672877889112,5.5073,1259.7,1259.2,2.9666376]
[1672877889329,3.0073,1259.5,1259.2,2.9666376]
[1672877889527,3.0073,1259.5,1259.2,1.18665504]
[1672877889846,2.5,1259.2,1259.1,1.18665504]
[1672877890058,2.5,1259.2,1259.0,2.9666376]
[1672877890688,2.5,1259.2,1259.1,1.18665504]
[1672877890903,2.5,1259.2,1259.0,2.9666376]
[1672877891104,2.5,1259.2,1259.1,2.9666376]
[1672877893528,3.0073,1259.3,1259.1,1.77998256]
[1672877893743,3.0073,1259.3,1259.2,3.67926717]
[1672877893954,3.0073,1259.3,1259.2,2.5]
[1672877894265,3.0073,1259.3,1259.1,5.45924973]
[1672877894888,3.0073,1259.3,1259.2,1.17926717]
[1672877895098,3.0073,1259.3,1259.2,3.67926717]
[1672877895421,3.0073,1259.3,1259.1,5.45924973]
[1672877895633,3.0073,1259.3,1259.2,1.17926717]
[1672877895844,3.0073,1259.3,1259.2,3.67926717]
[1672877896047,3.0073,1259.3,1259.1,5.45924973]
[1672877897738,3.0073,1259.3,1259.1,2.95924973]
[1672877899839,3.0073,1259.3,1259.1,1.17926717]
[1672877900251,2.5,1259.2,1259.1,1.17926717]
[1672877900999,2.5,1259.2,1259.0,2.95924973]
[1672877901211,3.0073,1259.1,1259.0,1.17926717]